fUSD/lending_fUSD_20240502
["ID","MTS","AMOUNT","RATE_DAILY","PERIOD"]
[325294488,1714684260619,-561.19,0.0003041,2]
[325294489,1714684260628,-612.56,0.0003041,2]
[325294490,1714684260637,-500.0,0.0003041,2]
[325294491,1714684260648,-1226.22,0.0003041,2]
[325294492,1714684260659,-500.0,0.0003041,2]
[325294493,1714684260669,-500.0,0.0003041,2]
[325294494,1714684260678,-2634.87,0.0003041,2]
[325294495,1714684260688,-790.2,0.0003041,2]
[325294496,1714684260698,-500.0,0.0003041,2]
[325294497,1714684260709,-500.0,0.0003041,2]
[325294498,1714684260720,-500.0,0.0003041,2]
[325294499,1714684260731,-285.528444,0.0003041,7]
[325294500,1714684260740,-500.0,0.0003041,2]
[325294501,1714684260750,-500.0,0.0003041,2]
[325294502,1714684260760,-500.0,0.0003041,2]
[325294503,1714684260770,-546.21,0.0003041,2]
[325294504,1714684260782,-500.0,0.0003041,2]
[325294505,1714684260792,-1090.27,0.0003041,2]
[325294506,1714684260801,-500.0,0.0003041,2]
[325294507,1714684260811,-699.79,0.0003041,2]
[325294508,1714684260820,-571.9,0.0003041,2]
[325294509,1714684260830,-900.35,0.0003041,2]
[325294510,1714684260839,-560.03,0.0003041,2]
[325294511,1714684260849,-546.73,0.0003041,2]
[325294512,1714684260858,-500.0,0.0003041,2]
[325294513,1714684260868,-500.0,0.0003041,2]
[325294514,1714684260877,-500.0,0.0003041,2]
[325294515,1714684260887,-500.0,0.0003041,2]
[325294516,1714684260896,-500.0,0.0003041,2]
[325294517,1714684260906,-500.0,0.0003041,2]
[325294518,1714684260915,-4041.83,0.0003041,2]
[325294519,1714684260925,-987.57,0.0003041,2]
[325294520,1714684260934,-1364.29,0.0003041,2]
[325294521,1714684260944,-628.78,0.0003041,2]
[325294522,1714684260954,-500.0,0.0003041,2]
[325294523,1714684260963,-820.78,0.0003041,2]
[325294524,1714684260972,-500.0,0.0003041,2]
[325294525,1714684260981,-500.0,0.0003041,2]
[325294526,1714684260991,-11807.03,0.0003041,2]
[325294527,1714684261000,-500.0,0.0003041,2]
[325294528,1714684261009,-500.0,0.0003041,2]
[325294529,1714684261019,-500.0,0.0003041,2]
[325294530,1714684261028,-500.0,0.0003041,2]
[325294531,1714684261039,-1142.27,0.0003041,2]
[325294532,1714684261049,-29260.29,0.0003041,2]
[325294533,1714684261059,-497.61760632,0.0003041,2]
[325294534,1714684261069,-500.0,0.0003041,2]
[325294535,1714684261078,-500.0,0.0003041,2]
[325294536,1714684261088,-500.0,0.0003041,2]
[325294537,1714684261098,-655.55,0.0003041,2]
[325294538,1714684261108,-839.82,0.0003041,2]
[325294539,1714684261119,-151.0,0.0003041,7]
[325294540,1714684261132,-770.43,0.0003041,2]
[325294541,1714684261143,-500.0,0.0003041,2]
[325294542,1714684261152,-500.0,0.0003041,2]
[325294543,1714684261165,-500.0,0.0003041,2]
[325294544,1714684261176,-500.0,0.0003041,2]
[325294545,1714684261185,-500.0,0.0003041,2]
[325294546,1714684261195,-500.0,0.0003041,2]
[325294547,1714684261206,-151.757086,0.0003041,7]
[325294548,1714684261216,-500.0,0.0003041,2]
[325294549,1714684261226,-500.0,0.0003041,2]
[325294550,1714684261235,-1040.3,0.0003041,2]
[325294551,1714684261245,-500.0,0.0003041,2]
[325294552,1714684261255,-500.0,0.0003041,2]
[325294553,1714684261264,-500.0,0.0003041,2]
[325294554,1714684261274,-2056.82,0.0003041,2]
[325294555,1714684261283,-1224.81,0.0003041,2]
[325294556,1714684261293,-500.0,0.0003041,2]
[325294557,1714684261302,-2541.51,0.0003041,2]
[325294558,1714684261312,-3036.22,0.0003041,2]
[325294559,1714684261322,-500.0,0.0003041,2]
[325294560,1714684261332,-939.71,0.0003041,2]
[325294561,1714684261341,-500.0,0.0003041,2]
[325294562,1714684261351,-1104.75,0.0003041,2]
[325294563,1714684261361,-500.0,0.0003041,2]
[325294564,1714684261370,-500.0,0.0003041,2]
[325294565,1714684261380,-152.659147,0.0003041,7]
[325294566,1714684261389,-1776.84,0.0003041,2]
[325294567,1714684261400,-500.0,0.0003041,2]
[325294568,1714684261409,-500.0,0.0003041,2]
[325294569,1714684261419,-500.0,0.0003041,2]
[325294570,1714684261428,-151.0,0.0003041,7]
[325294571,1714684261437,-151.494949,0.0003041,7]
[325294572,1714684261447,-500.0,0.0003041,2]
[325294573,1714684261456,-500.0,0.0003041,2]
[325294574,1714684261466,-500.0,0.0003041,2]
[325294575,1714684261475,-500.0,0.0003041,2]
[325294576,1714684261484,-500.0,0.0003041,2]
[325294577,1714684261494,-1450.08,0.0003041,2]
[325294578,1714684261504,-1188.0,0.0003041,2]
[325294579,1714684261514,-1462.34,0.0003041,2]
[325294580,1714684261523,-2815.35,0.0003041,2]
[325294581,1714684261533,-500.0,0.0003041,2]
[325294582,1714684261543,-500.0,0.0003041,2]
[325294583,1714684261553,-500.0,0.0003041,2]
[325294584,1714684261562,-500.0,0.0003041,2]
[325294585,1714684261572,-1673.43,0.0003041,2]
[325294586,1714684261582,-1048.02,0.0003041,2]
[325294587,1714684261591,-860.55,0.0003041,2]
[325294588,1714684261601,-151.0,0.0003041,7]
[325294589,1714684261611,-151.0,0.0003041,7]
[325294590,1714684261620,-1390.61,0.0003041,2]
[325294591,1714684261630,-500.0,0.0003041,2]
[325294592,1714684261640,-2317.45,0.0003041,2]
[325294593,1714684261649,-500.0,0.0003041,2]
[325294594,1714684261659,-431.67575265,0.0003041,2]
[325294595,1714684261669,-1301.69,0.0003041,2]
[325294596,1714684261679,-500.0,0.0003041,2]
[325294597,1714684261689,-500.0,0.0003041,2]
[325294598,1714684261698,-500.0,0.0003041,2]
[325294599,1714684261708,-500.0,0.0003041,2]
[325294600,1714684261718,-151.0,0.0003041,7]
[325294601,1714684261727,-500.0,0.0003041,2]
[325294602,1714684261737,-500.0,0.0003041,2]
[325294603,1714684261747,-500.0,0.0003041,2]
[325294604,1714684261756,-153.228189,0.0003041,7]
[325294605,1714684261769,-500.0,0.0003041,2]
[325294606,1714684261779,-500.0,0.0003041,2]
[325294607,1714684261790,-500.0,0.0003041,2]
[325294608,1714684261800,-4687.82,0.0003041,2]
[325294609,1714684261811,-500.0,0.0003041,2]
[325294610,1714684261821,-500.0,0.0003041,2]
[325294611,1714684261832,-500.0,0.0003041,2]
[325294612,1714684261843,-6272.25,0.0003041,2]
[325294613,1714684261853,-40313.35,0.0003041,2]
[325294614,1714684261863,-500.0,0.0003041,2]
[325294615,1714684261873,-569.45,0.0003041,2]
[325294616,1714684261882,-500.0,0.0003041,2]
[325294617,1714684261893,-500.0,0.0003041,2]
[325294618,1714684261903,-1530.93,0.0003041,2]
[325294619,1714684261912,-500.0,0.0003041,2]
[325294620,1714684261922,-569.61,0.0003041,2]
[325294621,1714684261931,-500.0,0.0003041,2]
[325294622,1714684261941,-500.0,0.0003041,2]
[325294623,1714684261951,-860.79,0.0003041,2]
[325294624,1714684261960,-503.36,0.0003041,2]
[325294625,1714684261970,-500.0,0.0003041,2]
[325294626,1714684261979,-416.02749033,0.0003041,2]
[325294627,1714684261989,-500.0,0.0003041,2]
[325294628,1714684261999,-1201.32,0.0003041,2]
[325294629,1714684262008,-2950.46,0.0003041,2]
[325294630,1714684262019,-741.29,0.0003041,2]
[325294631,1714684262029,-2366.76,0.0003041,2]
[325294632,1714684262040,-500.0,0.0003041,2]
[325294633,1714684262050,-1295.57,0.0003041,2]
[325294634,1714684262060,-165.34976252,0.0003041,2]
[325294635,1714684262070,-500.0,0.0003041,2]
[325294636,1714684262079,-500.0,0.0003041,2]
[325294637,1714684262090,-2511.05,0.0003041,2]
[325294638,1714684262099,-9131.57,0.0003041,2]
[325294639,1714684262110,-1248.2,0.0003041,2]
[325294640,1714684262122,-813.38,0.0003041,2]
[325294641,1714684262133,-1330.29,0.0003041,2]
[325294642,1714684262143,-500.0,0.0003041,2]
[325294643,1714684262152,-968.45,0.0003041,2]
[325294644,1714684262166,-1699.42,0.0003041,2]
[325294645,1714684262176,-500.0,0.0003041,2]
[325294646,1714684262186,-17863.75,0.0003041,2]
[325294647,1714684262196,-500.0,0.0003041,2]
[325294648,1714684262207,-2198.26,0.0003041,2]
[325294649,1714684262217,-545.48,0.0003041,2]
[325294650,1714684262227,-500.0,0.0003041,2]
[325294651,1714684262236,-500.0,0.0003041,2]
[325294652,1714684262246,-1039.11,0.0003041,2]
[325294653,1714684262255,-1442.85,0.0003041,2]
[325294654,1714684262265,-1325.64,0.0003041,2]
[325294655,1714684262275,-614.45,0.0003041,2]
[325294656,1714684262285,-505.85113241,0.0003041,2]
[325294657,1714684262295,-13308.57,0.0003041,2]
[325294658,1714684262305,-1287.73,0.0003041,2]
[325294659,1714684262570,-151.0,0.0003041,7]
[325294660,1714684262580,-10866.31,0.0003041,2]
[325294661,1714684262590,-500.0,0.0003041,2]
[325294662,1714684262599,-2056.82,0.0003041,2]
[325294663,1714684262608,-500.0,0.0003041,2]
[325294664,1714684262617,-500.0,0.0003041,2]
[325294665,1714684262627,-7164.57,0.0003041,2]
[325294666,1714684262636,-500.0,0.0003041,2]
[325294667,1714684262645,-500.0,0.0003041,2]
[325294668,1714684262655,-322.88652135,0.0003041,2]
[325294669,1714684262664,-500.0,0.0003041,2]
[325294670,1714684262673,-500.0,0.0003041,2]
[325294671,1714684262683,-500.0,0.0003041,2]
[325294672,1714684262692,-500.0,0.0003041,2]
[325294673,1714684262702,-500.0,0.0003041,2]
[325294674,1714684262711,-3362.13,0.0003041,2]
[325294675,1714684262721,-605.84,0.0003041,2]
[325294676,1714684262731,-4267.61,0.0003041,2]
[325294677,1714684262740,-1390.14,0.0003041,2]
[325294678,1714684262750,-492.90994359,0.0003041,2]
[325294679,1714684262760,-1557.08,0.0003041,2]
[325294680,1714684262770,-500.0,0.0003041,2]
[325294681,1714684262779,-151.0,0.0003041,7]
[325294682,1714684262792,-1070.08,0.0003041,2]
[325294683,1714684262801,-2777.11,0.0003041,2]
[325294684,1714684262811,-589.67,0.0003041,2]
[325294685,1714684262820,-500.0,0.0003041,2]
[325294686,1714684262830,-994.43,0.0003041,2]
[325294687,1714684262839,-500.0,0.0003041,2]
[325294688,1714684262849,-3654.85,0.0003041,2]
[325294689,1714684262859,-500.0,0.0003041,2]
[325294690,1714684262869,-500.0,0.0003041,2]
[325294691,1714684262879,-151.0,0.0003041,7]
[325294692,1714684262888,-522.59,0.0003041,2]
[325294693,1714684262898,-2159.8,0.0003041,2]
[325294694,1714684262907,-2547.27,0.0003041,2]
[325294695,1714684262916,-151.0,0.0003041,7]
[325294696,1714684262925,-861.29,0.0003041,2]
[325294697,1714684262936,-1115.28,0.0003041,2]
[325294698,1714684262946,-5133.36,0.0003041,2]
[325294699,1714684262955,-1312.13,0.0003041,2]
[325294700,1714684262965,-994.89,0.0003041,2]
[325294701,1714684262975,-1788.75,0.0003041,2]
[325294702,1714684262984,-595.07,0.0003041,2]
[325294703,1714684262993,-151.0,0.0003041,7]
[325294704,1714684263003,-500.0,0.0003041,2]
[325294705,1714684263012,-500.0,0.0003041,2]
[325294706,1714684263021,-552.07,0.0003041,2]
[325294707,1714684263031,-3112.16,0.0003041,2]
[325294708,1714684263045,-259.14367403,0.0003041,2]
[325294709,1714684263623,-240.85632597,0.0003041,2]
[325294710,1714684263633,-500.0,0.0003041,2]
[325294711,1714684263643,-500.0,0.0003041,2]
[325294712,1714684263652,-1325.11,0.0003041,2]
[325294713,1714684263661,-2398.96,0.0003041,2]
[325294714,1714684263671,-743.56,0.0003041,2]
[325294715,1714684263681,-500.0,0.0003041,2]
[325294716,1714684263690,-500.0,0.0003041,2]
[325294717,1714684263699,-721.07,0.0003041,2]
[325294718,1714684263708,-21906.74,0.0003041,2]
[325294719,1714684263718,-2595.86,0.0003041,2]
[325294720,1714684263727,-6661.19,0.0003041,2]
[325294721,1714684263737,-5657.08,0.0003041,2]
[325294722,1714684263746,-2515.48,0.0003041,2]
[325294723,1714684263756,-500.0,0.0003041,2]
[325294724,1714684263765,-500.0,0.0003041,2]
[325294725,1714684263774,-500.0,0.0003041,2]
[325294726,1714684263785,-151.0,0.0003041,7]
[325294727,1714684263795,-500.0,0.0003041,2]
[325294728,1714684263804,-504.52,0.0003041,2]
[325294729,1714684263814,-1525.1,0.0003041,2]
[325294730,1714684263823,-3556.58,0.0003041,2]
[325294731,1714684263833,-500.0,0.0003041,2]
[325294732,1714684263843,-151.0,0.0003041,7]
[325294733,1714684263854,-506.11160711,0.0003041,2]
[325294734,1714684263863,-3148.59,0.0003041,2]
[325294735,1714684263874,-1264.5,0.0003041,2]
[325294736,1714684263883,-1333.64,0.0003041,2]
[325294737,1714684263892,-2577.5,0.0003041,2]
[325294738,1714684263902,-2594.17,0.0003041,2]
[325294739,1714684263911,-1173.51,0.0003041,2]
[325294740,1714684263921,-6397.57,0.0003041,2]
[325294741,1714684263931,-500.0,0.0003041,2]
[325294742,1714684263941,-10831.97,0.0003041,2]
[325294743,1714684263950,-500.0,0.0003041,2]
[325294744,1714684263959,-500.0,0.0003041,2]
[325294745,1714684263968,-2060.58,0.0003041,2]
[325294746,1714684263978,-5018.06,0.0003041,2]
[325294747,1714684263988,-817.74,0.0003041,2]
[325294748,1714684263997,-500.0,0.0003041,2]
[325294749,1714684264007,-500.0,0.0003041,2]
[325294750,1714684264016,-950.94,0.0003041,2]
[325294751,1714684264027,-500.0,0.0003041,2]
[325294752,1714684264038,-1239.93,0.0003041,2]
[325294753,1714684264047,-2591.06,0.0003041,2]
[325294754,1714684264056,-500.0,0.0003041,2]
[325294755,1714684264067,-1104.14,0.0003041,2]
[325294756,1714684264077,-1334.0,0.0003041,2]
[325294757,1714684264087,-438.612677,0.0003041,7]
[325294758,1714684264096,-500.0,0.0003041,2]
[325294759,1714684264107,-2156.62,0.0003041,2]
[325294760,1714684264117,-1694.93,0.0003041,2]
[325294761,1714684264131,-500.0,0.0003041,2]
[325294762,1714684264141,-500.0,0.0003041,2]
[325294763,1714684264150,-57620.15,0.0003041,2]
[325294764,1714684264159,-2873.92,0.0003041,2]
[325294765,1714684264171,-330.42326529,0.0003041,2]
[325294766,1714684264181,-438.612677,0.0003041,7]
[325294767,1714684264191,-217.133534,0.0003041,7]
[325294768,1714684264202,-1315.37,0.0003041,2]
[325294769,1714684264211,-4749.79,0.0003041,2]
[325294770,1714684264220,-500.0,0.0003041,2]
[325294771,1714684264229,-12678.83,0.0003041,2]
[325294772,1714684264238,-769.23,0.0003041,2]
[325294773,1714684264248,-1475.49,0.0003041,2]
[325294774,1714684264257,-1054.21,0.0003041,2]
[325294775,1714684264267,-500.0,0.0003041,2]
[325294776,1714684264276,-4076.92,0.0003041,2]
[325294777,1714684264286,-3131.82,0.0003041,2]
[325294778,1714684264295,-1246.08,0.0003041,2]
[325294779,1714684264304,-500.0,0.0003041,2]
[325294780,1714684264314,-500.0,0.0003041,2]
[325294781,1714684264323,-20884.38,0.0003041,2]
[325294782,1714684264332,-500.0,0.0003041,2]
[325294783,1714684264341,-500.0,0.0003041,2]
[325294784,1714684264351,-2340.19,0.0003041,2]
[325294785,1714684264360,-500.0,0.0003041,2]
[325294786,1714684264369,-500.0,0.0003041,2]
[325294787,1714684264378,-5183.92,0.0003041,2]
[325294788,1714684264388,-837.58,0.0003041,2]
[325294789,1714684264397,-2641.82,0.0003041,2]
[325294790,1714684264406,-500.0,0.0003041,2]
[325294791,1714684264416,-19728.02,0.0003041,2]
[325294792,1714684264426,-500.0,0.0003041,2]
[325294793,1714684264436,-1686.28,0.0003041,2]
[325294794,1714684264445,-530.48,0.0003041,2]
[325294795,1714684264456,-151.835124,0.0003041,7]
[325294796,1714684264465,-624.31084048,0.0003041,2]
[325294797,1714684264474,-500.0,0.0003041,2]
[325294798,1714684264485,-6726.05,0.0003041,2]
[325294799,1714684264496,-642.7,0.0003041,2]
[325294800,1714684264506,-500.0,0.0003041,2]
[325294801,1714684264515,-14013.91,0.0003041,2]
[325294802,1714684264524,-1575.24,0.0003041,2]
[325294803,1714684264535,-896.64,0.0003041,2]
[325294804,1714684264545,-151.835124,0.0003041,7]
[325294805,1714684264554,-2789.55,0.0003041,2]
[325294806,1714684264564,-852.65,0.0003041,2]
[325294807,1714684264573,-1921.25,0.0003041,2]
[325294808,1714684264583,-1384.99,0.0003041,2]
[325294809,1714684264592,-500.0,0.0003041,2]
[325294810,1714684264601,-2313.4,0.0003041,2]
[325294811,1714684264610,-4197.63,0.0003041,2]
[325294812,1714684264619,-1775.28,0.0003041,2]
[325294813,1714684264628,-3054.57,0.0003041,2]
[325294814,1714684264637,-500.0,0.0003041,2]
[325294815,1714684264647,-1575.19,0.0003041,2]
[325294816,1714684264656,-1682.62,0.0003041,2]
[325294817,1714684264757,-588.14,0.0003041,2]
[325294818,1714684264767,-500.0,0.0003041,2]
[325294819,1714684264776,-507.82792012,0.0003041,2]
[325294820,1714684264788,-3388.56,0.0003041,2]
[325294821,1714684264797,-3314.56,0.0003041,2]
[325294822,1714684264807,-2102.79,0.0003041,2]
[325294823,1714684264816,-10404.51,0.0003041,2]
[325294824,1714684264826,-500.0,0.0003041,2]
[325294825,1714684264835,-500.0,0.0003041,2]
[325294826,1714684264844,-971.82,0.0003041,2]
[325294827,1714684264854,-500.0,0.0003041,2]
[325294828,1714684264863,-2060.94,0.0003041,2]
[325294829,1714684264872,-1318.59,0.0003041,2]
[325294830,1714684264881,-500.0,0.0003041,2]
[325294831,1714684264890,-5491.48,0.0003041,2]
[325294832,1714684264899,-500.0,0.0003041,2]
[325294833,1714684264908,-500.0,0.0003041,2]
[325294834,1714684264917,-500.0,0.0003041,2]
[325294835,1714684264927,-500.0,0.0003041,2]
[325294836,1714684264936,-6202.73,0.0003041,2]
[325294837,1714684264945,-3249.96,0.0003041,2]
[325294838,1714684264954,-500.0,0.0003041,2]
[325294839,1714684264963,-715.07,0.0003041,2]
[325294840,1714684264972,-4710.19,0.0003041,2]
[325294841,1714684264981,-500.0,0.0003041,2]
[325294842,1714684264991,-507.95,0.0003041,2]
[325294843,1714684265000,-1897.9,0.0003041,2]
[325294844,1714684265009,-8445.41,0.0003041,2]
[325294845,1714684265019,-2085.21,0.0003041,2]
[325294846,1714684265028,-1665.31,0.0003041,2]
[325294847,1714684265040,-500.0,0.0003041,2]
[325294848,1714684265050,-500.0,0.0003041,2]
[325294849,1714684265060,-600.89825041,0.0003041,2]
[325294850,1714684265068,-845.06,0.0003041,2]
[325294851,1714684265078,-500.0,0.0003041,2]
[325294852,1714684265088,-5611.82,0.0003041,2]
[325294853,1714684265098,-4509.18,0.0003041,2]
[325294854,1714684265107,-500.0,0.0003041,2]
[325294855,1714684265117,-2391.39,0.0003041,2]
[325294856,1714684265126,-3469.21,0.0003041,2]
[325294857,1714684265138,-408.82871994,0.0003041,2]
[325294858,1714684265148,-2589.12,0.0003041,2]
[325294859,1714684265158,-3788.91,0.0003041,2]
[325294860,1714684265172,-2804.77,0.0003041,2]
[325294861,1714684265184,-1697.02,0.0003041,2]
[325294862,1714684265194,-500.0,0.0003041,2]
[325294863,1714684265204,-500.0,0.0003041,2]
[325294864,1714684265215,-500.0,0.0003041,2]
[325294865,1714684265225,-1613.25,0.0003041,2]
[325294866,1714684265234,-500.0,0.0003041,2]
[325294867,1714684265243,-151.0,0.0003041,7]
[325294868,1714684265252,-594.72,0.0003041,2]
[325294869,1714684265262,-1719.81,0.0003041,2]
[325294870,1714684265271,-500.0,0.0003041,2]
[325294871,1714684265281,-1650.54,0.0003041,2]
[325294872,1714684265293,-566.44,0.0003041,2]
[325294873,1714684265303,-547.13,0.0003041,2]
[325294874,1714684265312,-500.0,0.0003041,2]
[325294875,1714684265321,-500.0,0.0003041,2]
[325294876,1714684265332,-151.0,0.0003041,7]
[325294877,1714684265342,-2894.48,0.0003041,2]
[325294878,1714684265351,-1943.65,0.0003041,2]
[325294879,1714684265361,-500.0,0.0003041,2]
[325294880,1714684265370,-412.489962,0.0003041,7]
[325294881,1714684265379,-500.0,0.0003041,2]
[325294882,1714684265388,-1664.07,0.0003041,2]
[325294883,1714684265398,-500.0,0.0003041,2]
[325294884,1714684265407,-1177.55,0.0003041,2]
[325294885,1714684265416,-519.95,0.0003041,2]
[325294886,1714684265426,-151.0,0.0003041,7]
[325294887,1714684265436,-1170.56,0.0003041,2]
[325294888,1714684265445,-500.0,0.0003041,2]
[325294889,1714684265455,-571.78,0.0003041,2]
[325294890,1714684265464,-996.19,0.0003041,2]
[325294891,1714684265475,-412.489962,0.0003041,7]
[325294892,1714684265484,-4100.76,0.0003041,2]
[325294893,1714684265494,-500.0,0.0003041,2]
[325294894,1714684265503,-6428.66,0.0003041,2]
[325294895,1714684265512,-816.41,0.0003041,2]
[325294896,1714684265521,-11194.18,0.0003041,2]
[325294897,1714684265530,-8375.07,0.0003041,2]
[325294898,1714684265542,-151.0,0.0003041,7]
[325294899,1714684265551,-1879.48,0.0003041,2]
[325294900,1714684265560,-1536.35,0.0003041,2]
[325294901,1714684265569,-500.0,0.0003041,2]
[325294902,1714684265579,-500.0,0.0003041,2]
[325294903,1714684265588,-2627.37,0.0003041,2]
[325294904,1714684265598,-500.0,0.0003041,2]
[325294905,1714684265608,-500.0,0.0003041,2]
[325294906,1714684265618,-1806.57,0.0003041,2]
[325294907,1714684265628,-3341.51,0.0003041,2]
[325294908,1714684265638,-1783.89,0.0003041,2]
[325294909,1714684265647,-500.0,0.0003041,2]
[325294910,1714684265657,-500.0,0.0003041,2]
[325294911,1714684265666,-500.0,0.0003041,2]
[325294912,1714684265675,-500.0,0.0003041,2]
[325294913,1714684265685,-500.0,0.0003041,2]
[325294914,1714684265694,-3805.83,0.0003041,2]
[325294915,1714684265703,-10844.54,0.0003041,2]
[325294916,1714684265713,-500.0,0.0003041,2]
[325294917,1714684265722,-500.0,0.0003041,2]
[325294918,1714684265731,-554.45,0.0003041,2]
[325294919,1714684265740,-1728.19,0.0003041,2]
[325294920,1714684265749,-273.30285909,0.0003041,2]
[325294921,1714684265759,-1300.93,0.0003041,2]
[325294922,1714684265768,-500.0,0.0003041,2]
[325294923,1714684265777,-500.0,0.0003041,2]
[325294924,1714684265787,-881.7,0.0003041,2]
[325294925,1714684265796,-2279.31,0.0003041,2]
[325294926,1714684265806,-500.0,0.0003041,2]
[325294927,1714684265815,-625.53862055,0.0003041,2]
[325294928,1714684265824,-151.0,0.0003041,7]
[325294929,1714684265833,-2208.53,0.0003041,2]
[325294930,1714684265842,-535.56,0.0003041,2]
[325294931,1714684265851,-2457.38,0.0003041,2]
[325294932,1714684265861,-43460.75,0.0003041,2]
[325294933,1714684265870,-500.0,0.0003041,2]
[325294934,1714684265879,-1513.53,0.0003041,2]
[325294935,1714684265888,-1455.02,0.0003041,2]
[325294936,1714684265898,-500.0,0.0003041,2]
[325294937,1714684265907,-2664.07,0.0003041,2]
[325294938,1714684265917,-8283.65,0.0003041,2]
[325294939,1714684265926,-2244.44,0.0003041,2]
[325294940,1714684265935,-500.0,0.0003041,2]
[325294941,1714684265945,-151.0,0.0003041,7]
[325294942,1714684265955,-2695.86,0.0003041,2]
[325294943,1714684265965,-500.0,0.0003041,2]
[325294944,1714684265974,-1646.31,0.0003041,2]
[325294945,1714684265983,-500.0,0.0003041,2]
[325294946,1714684265993,-500.0,0.0003041,2]
[325294947,1714684266002,-1229.28,0.0003041,2]
[325294948,1714684266012,-500.0,0.0003041,2]
[325294949,1714684266021,-4480.03,0.0003041,2]
[325294950,1714684266031,-510.3,0.0003041,2]
[325294951,1714684266042,-2068.41,0.0003041,2]
[325294952,1714684266052,-1400.25,0.0003041,2]
[325294953,1714684266061,-1703.81,0.0003041,2]
[325294954,1714684266070,-1095.21,0.0003041,2]
[325294955,1714684266080,-500.0,0.0003041,2]
[325294956,1714684266089,-3266.49,0.0003041,2]
[325294957,1714684266099,-709.28,0.0003041,2]
[325294958,1714684266108,-500.0,0.0003041,2]
[325294959,1714684266118,-151.0,0.0003041,7]
[325294960,1714684266132,-2083.85,0.0003041,2]
[325294961,1714684266142,-157.050306,0.00030498,4]
[325294962,1714684266151,-157.050306,0.00030498,6]
[325294963,1714684266163,-157.050306,0.00030498,10]
[325294964,1714684266173,-157.050306,0.00030498,12]
[325294965,1714684266182,-200.0,0.00030522,7]
[325294966,1714684266192,-157.050306,0.00030548,12]
[325294967,1714684266201,-157.050306,0.00030598,12]
[325294968,1714684266212,-157.050306,0.00030598,10]
[325294969,1714684266222,-157.050306,0.00030598,6]
[325294970,1714684266231,-157.050306,0.00030598,4]
[325294971,1714684266241,-200.0,0.0003064,2]
[325294972,1714684266250,-500.0,0.0003064,2]
[325294973,1714684266260,-200.0,0.0003064,2]
[325294974,1714684266270,-157.050306,0.00030648,4]
[325294975,1714684266281,-157.050306,0.00030648,6]
[325294976,1714684266293,-157.050306,0.00030648,10]
[325294977,1714684266303,-157.050306,0.00030648,12]
[325294978,1714684266314,-713.69,0.00030683,4]
[325294979,1714684266323,-500.0,0.00030684,2]
[325294980,1714684266333,-500.0,0.00030684,2]
[325294981,1714684266342,-500.0,0.00030684,2]
[325294982,1714684266352,-500.0,0.00030684,2]
[325294983,1714684266361,-851.85,0.00030684,2]
[325294984,1714684266370,-500.0,0.00030684,2]
[325294985,1714684266380,-500.0,0.00030684,2]
[325294986,1714684266388,-500.0,0.00030684,2]
[325294987,1714684266398,-947.66,0.00030684,2]